fUSD/lending_fUSD_20251109
["ID","MTS","AMOUNT","RATE_DAILY","PERIOD"]
[393492127,1762717841765,-41486.0853887,0.0002999,3]
[393492129,1762717841775,-151.0,0.0002999,31]
[393492131,1762717841783,-151.0,0.0002999,31]
[393492133,1762717841793,-291.225391,0.0002999,31]
[393492135,1762717841802,-174.051404,0.0002999,31]
[393492137,1762717841812,-174.051404,0.0002999,31]
[393492138,1762717841821,-151.0,0.0002999,15]
[393492141,1762717841831,-174.051404,0.0002999,31]
[393492143,1762717841840,-151.0,0.0002999,31]
[393492145,1762717841850,-151.0,0.0002999,15]
[393492147,1762717841860,-174.051404,0.0002999,31]
[393492148,1762717841869,-151.0,0.0002999,31]
[393492150,1762717841878,-151.0,0.0002999,31]
[393492152,1762717841886,-151.0,0.0002999,31]
[393492154,1762717841895,-151.0,0.0002999,31]
[393492156,1762717841902,-151.0,0.0002999,31]
[393492158,1762717841911,-151.0,0.0002999,31]
[393492160,1762717841920,-323.440184,0.0002999,31]
[393492161,1762717841929,-323.440184,0.0002999,31]
[393492163,1762717841938,-323.440184,0.0002999,31]
[393492166,1762717841949,-151.0,0.0002999,31]
[393492168,1762717841959,-323.440184,0.0002999,31]
[393492170,1762717841970,-151.0,0.0002999,31]
[393492172,1762717841979,-151.0,0.0002999,31]
[393492174,1762717841989,-151.0,0.0002999,31]
[393492176,1762717841998,-151.0,0.0002999,31]
[393492178,1762717842008,-151.0,0.0002999,31]
[393492180,1762717842018,-103494.48382035,0.0003,5]
[393492182,1762717842027,-228.31899515,0.00030125,15]
[393492184,1762717842037,-6000.15936023,0.00030125,2]
[393492186,1762717842047,-1999.0,0.00030136,2]
[393492188,1762717842056,-158.28,0.0003023,30]
[393492190,1762717842066,-2351.0,0.00030294,2]
[393492192,1762717842076,-188.82,0.00030328,2]
[393492194,1762717842085,-500.0,0.00030368,5]
[393492196,1762717842095,-199.0,0.0003041,7]
[393492198,1762717842104,-234.81,0.00030415,2]
[393492200,1762717842114,-20743.0426943,0.00030442,3]
[393492202,1762717842124,-27813.1790494,0.00030451,3]
[393492204,1762717842134,-150.0,0.00030461,20]
[393492206,1762717842143,-151.0,0.00030472,31]
[393492208,1762717842152,-151.0,0.00030472,31]
[393492210,1762717842162,-288.94397892,0.00030472,31]
[393492212,1762717842171,-223.381329,0.00030472,31]
[393492214,1762717842181,-151.569215,0.00030472,31]
[393492216,1762717842191,-151.0,0.00030472,31]
[393492218,1762717842202,-166.206026,0.00030472,31]
[393492220,1762717842212,-151.0,0.00030472,31]
[393492222,1762717842222,-151.0,0.00030472,31]
[393492224,1762717842239,-151.0,0.00030472,31]
[393492226,1762717842248,-151.0,0.00030472,31]
[393492228,1762717842258,-151.0,0.00030472,31]
[393492230,1762717842266,-151.0,0.00030472,31]
[393492232,1762717842277,-151.0,0.00030472,31]
[393492234,1762717842286,-151.0,0.00030472,31]
[393492236,1762717842295,-151.0,0.00030472,31]
[393492238,1762717842304,-151.0,0.00030472,31]
[393492240,1762717842314,-161.098286,0.00030472,31]
[393492242,1762717842323,-1000.0,0.0003048,2]
[393492243,1762717842332,-500.0,0.00030521,5]
[393492244,1762717842341,-20743.0426943,0.00030667,3]
[393492245,1762717842350,-800.0,0.00030677,11]
[393492246,1762717842359,-800.0,0.00030677,11]
[393492247,1762717842368,-800.0,0.00030677,11]
[393492248,1762717842377,-800.0,0.00030677,11]
[393492249,1762717842386,-800.0,0.00030677,11]
[393492250,1762717842396,-800.0,0.00030677,11]
[393492251,1762717842405,-800.0,0.00030677,11]
[393492252,1762717842415,-800.0,0.00030677,11]
[393492253,1762717842424,-800.0,0.00030677,11]
[393492254,1762717842434,-800.0,0.00030677,11]
[393492255,1762717842444,-199.0,0.00030958,8]
[393492257,1762717842454,-504.72000355,0.0003109,5]
[393492260,1762717842464,-250.0,0.000311,2]
[393492262,1762717842475,-150.97859186,0.00031185,2]
[393492263,1762717842485,-428.19,0.000312,7]
[393492265,1762717842495,-256.68,0.000312,30]
[393492267,1762717842504,-159.71131611,0.00031413,2]
[393492270,1762717842515,-199.0,0.00031506,9]
[393492272,1762717842525,-27813.1790494,0.00031609,3]
[393492274,1762717842534,-20743.0426943,0.00031609,3]
[393492276,1762717842544,-228.31899515,0.00031628,15]
[393492278,1762717842553,-6000.15936023,0.00031628,2]
[393492280,1762717842563,-20743.0426943,0.00031674,3]
[393492281,1762717842572,-168.24179502,0.00031684,2]
[393492283,1762717842581,-150.0,0.00031684,2]
[393492285,1762717842589,-150.0,0.00031684,2]
[393492287,1762717842597,-151.0,0.00031684,31]
[393492289,1762717842607,-174.051404,0.00031684,31]
[393492291,1762717842616,-174.051404,0.00031684,31]
[393492293,1762717842625,-151.0,0.00031684,15]
[393492295,1762717842634,-174.051404,0.00031684,31]
[393492297,1762717842643,-174.051404,0.00031684,31]
[393492299,1762717842653,-151.0,0.00031684,15]
[393492301,1762717842662,-151.0,0.00031684,31]
[393492303,1762717842671,-180.535969,0.00031684,31]
[393492305,1762717842680,-323.440184,0.00031684,31]
[393492307,1762717842689,-323.440184,0.00031684,31]
[393492327,1762717842842,-323.440184,0.00031684,31]
[393492329,1762717842852,-323.440184,0.00031684,31]
[393492332,1762717842864,-151.0,0.00031684,31]
[393492334,1762717842873,-151.0,0.00031684,31]
[393492336,1762717842883,-151.0,0.00031684,31]
[393492338,1762717842893,-151.0,0.00031684,31]
[393492340,1762717842902,-593.0,0.00031684,2]
[393492342,1762717842912,-561.0,0.00031684,2]
[393492343,1762717842922,-3344.0,0.00031684,2]
[393492345,1762717842931,-1316.0,0.00031684,2]
[393492347,1762717842941,-1596.0,0.00031684,2]
[393492349,1762717842951,-820.0,0.00031684,2]
[393492352,1762717842960,-813.0,0.00031684,2]
[393492353,1762717842970,-1273.0,0.00031684,2]
[393492356,1762717842981,-6661.0,0.00031684,2]
[393492358,1762717842991,-559.0,0.00031684,2]
[393492360,1762717843001,-6478.0,0.00031684,2]
[393492361,1762717843011,-2142.0,0.00031684,2]
[393492364,1762717843022,-151.0,0.00031699,7]
[393492366,1762717843032,-27813.1790494,0.00031703,3]
[393492368,1762717843041,-1999.0,0.0003178,4]
[393492370,1762717843051,-153.34441938,0.00032054,10]
[393492372,1762717843060,-2000.0,0.000321,2]
[393492374,1762717843070,-2227.671,0.00032179,31]
[393492376,1762717843080,-262.07,0.00032179,31]
[393492378,1762717843089,-154.680057,0.0003235,3]
[393492380,1762717843099,-1992.1902883,0.0003271,2]
[393492382,1762717843108,-162.21113264,0.00032745,2]
[393492384,1762717843117,-473.98,0.00032812,2]
[393492385,1762717843126,-200.0,0.00032814,5]
[393492387,1762717843135,-360.61508588,0.00032814,5]
[393492389,1762717843144,-501.40957897,0.00032814,5]
[393492391,1762717843153,-500.0,0.00032814,5]
[393492393,1762717843163,-500.0,0.00032814,5]
[393492396,1762717843173,-20743.0426943,0.00032826,3]
[393492397,1762717843182,-500.0,0.00032876,2]
[393492399,1762717843191,-500.0,0.00032876,2]
[393492401,1762717843202,-500.0,0.00032876,2]
[393492403,1762717843213,-500.0,0.00032876,2]
[393492405,1762717843222,-500.0,0.00032876,2]
[393492407,1762717843232,-500.0,0.00032876,2]
[393492410,1762717843244,-500.0,0.00032876,2]
[393492412,1762717843254,-500.0,0.00032876,2]
[393492414,1762717843263,-500.0,0.00032876,2]
[393492416,1762717843272,-500.0,0.00032876,2]
[393492418,1762717843283,-445.61855024,0.00032876,2]
[393492419,1762717843292,-164.0,0.00033,14]
[393492422,1762717843302,-20743.0426943,0.0003309,3]
[393492424,1762717843311,-228.31899515,0.00033131,15]
[393492426,1762717843320,-6000.15936023,0.00033131,2]
[393492428,1762717843329,-9560.44544483,0.00033164,2]
[393492430,1762717843338,-185.84294708,0.00033164,2]
[393492432,1762717843348,-495.32,0.00033165,2]
[393492434,1762717843358,-428.19,0.000332,14]
[393492436,1762717843367,-20743.0426943,0.00033223,3]
[393492438,1762717843376,-999.0,0.00033293,3]
[393492440,1762717843385,-159.71131611,0.00033346,2]
[393492442,1762717843394,-500.0,0.00033362,5]
[393492444,1762717843404,-718.53533746,0.00033362,5]
[393492446,1762717843413,-158.28,0.00033412,30]
[393492447,1762717843423,-1996.23502218,0.00033424,120]
[393492449,1762717843432,-400.0,0.00033499,5]
[393492451,1762717843441,-151.0,0.00033676,31]
[393492453,1762717843451,-151.0,0.00033676,31]
[393492455,1762717843460,-151.0,0.00033676,31]
[393492457,1762717843470,-151.0,0.00033676,31]
[393492459,1762717843478,-151.0,0.00033676,31]
[393492461,1762717843490,-151.0,0.00033676,31]
[393492464,1762717843499,-151.0,0.00033676,31]
[393492466,1762717843509,-151.0,0.00033676,31]
[393492467,1762717843518,-209.512811,0.00033676,31]
[393492469,1762717843527,-234.255285,0.00033676,31]
[393492471,1762717843537,-151.0,0.00033676,31]
[393492473,1762717843547,-150.722934,0.0003397,2]
[393492475,1762717843556,-154.680057,0.0003397,2]
[393492477,1762717843565,-156.441113,0.0003397,2]
[393492479,1762717843574,-155.282256,0.0003397,2]
[393492481,1762717843583,-347.64,0.0003399,2]
[393492483,1762717843594,-20743.0426943,0.0003399,3]
[393492485,1762717843603,-14393.93120472,0.00034,2]
[393492487,1762717843612,-28156.0,0.000341,2]
[393492489,1762717843621,-600.0,0.00034184,5]
[393492491,1762717843630,-1000.0,0.0003429,2]
[393492493,1762717843640,-164.0,0.00034521,30]
[393492495,1762717843650,-20743.0426943,0.00034539,3]
[393492497,1762717843659,-17910.6030992,0.00034549,2]
[393492600,1762717844699,-151.0,0.00029308,31]
[393492601,1762717844709,-151.0,0.0002999,31]
[393492603,1762717844718,-151.0,0.00031684,31]
[393492605,1762717844727,-547.0,0.00034549,2]
[393492608,1762717844753,-31336.61184,0.00034549,2]
[393492610,1762717844763,-228.31899515,0.00034634,15]
[393492612,1762717844772,-6000.15936023,0.00034634,2]
[393492614,1762717844781,-1596.0,0.00034684,2]
[393492616,1762717844791,-820.0,0.00034684,2]
[393492618,1762717844800,-812.0,0.00034684,2]
[393492620,1762717844809,-1273.0,0.00034684,2]
[393492622,1762717844819,-6661.0,0.00034684,2]
[393492625,1762717844828,-559.0,0.00034684,2]
[393492627,1762717844837,-6478.0,0.00034684,2]
[393492629,1762717844847,-20743.0426943,0.0003479,3]
[393492631,1762717844856,-800.0,0.00034869,5]
[393492633,1762717844865,-5516.0,0.000349,3]
[393492635,1762717844874,-151.0,0.0003499,31]
[393492638,1762717844895,-151.0,0.0003499,31]
[393492640,1762717844904,-151.0,0.0003499,31]
[393492642,1762717844914,-151.0,0.0003499,31]
[393492644,1762717844924,-151.0,0.0003499,31]
[393492646,1762717844933,-151.0,0.0003499,31]
[393492648,1762717844943,-151.0,0.0003499,31]
[393492650,1762717844951,-151.0,0.0003499,31]
[393492652,1762717844962,-323.440184,0.0003499,31]
[393492654,1762717844972,-323.440184,0.0003499,31]
[393492656,1762717844981,-323.440184,0.0003499,31]
[393492658,1762717844994,-323.440184,0.0003499,31]
[393492660,1762717845004,-151.0,0.0003499,31]
[393492662,1762717845014,-151.0,0.0003499,31]
[393492664,1762717845024,-151.0,0.0003499,31]
[393492666,1762717845034,-151.0,0.0003499,31]
[393492668,1762717845045,-151.0,0.0003499,31]
[393492670,1762717845055,-30346.07,0.0003499,2]
[393492672,1762717845064,-5073.0,0.00035,2]
[393492674,1762717845075,-152.83,0.00035071,2]
[393492676,1762717845085,-159.71131611,0.00035278,2]
[393492678,1762717845094,-428.19,0.000353,14]
[393492681,1762717845104,-20743.0426943,0.00035502,3]
[393492683,1762717845115,-5000.0,0.00035511,2]
[393492685,1762717845124,-1000.0,0.00035554,5]
[393492687,1762717845134,-151.0,0.00035616,31]
[393492689,1762717845143,-151.0,0.00035616,31]
[393492691,1762717845155,-151.0,0.00035616,31]
[393492693,1762717845164,-151.0,0.00035616,31]
[393492695,1762717845175,-151.0,0.00035616,31]
[393492697,1762717845185,-860.37,0.00035643,5]
[393492699,1762717845194,-5516.0,0.000357,5]
[393492701,1762717845206,-151.0,0.00035718,31]
[393492703,1762717845215,-174.051404,0.00035718,31]
[393492705,1762717845225,-174.051404,0.00035718,31]
[393492707,1762717845235,-174.051404,0.00035718,31]
[393492709,1762717845248,-151.0,0.00035718,15]
[393492710,1762717845258,-174.051404,0.00035718,31]
[393492711,1762717845268,-151.0,0.00035718,15]
[393492712,1762717845279,-151.0,0.00035718,31]
[393492713,1762717845289,-11110.5911538,0.00035718,2]
[393492714,1762717845299,-158.2598701,0.00035792,2]
[393492716,1762717845309,-1002.0,0.000358,2]
[393492718,1762717845318,-1807.0,0.00035936,5]
[393492720,1762717845328,-920.0,0.00035957,7]
[393492722,1762717845338,-150.722934,0.00036075,3]
[393492724,1762717845347,-154.680057,0.00036075,3]
[393492726,1762717845357,-156.441113,0.00036075,3]
[393492728,1762717845366,-155.282256,0.00036075,3]
[393492730,1762717845376,-1992.1902883,0.00036111,2]
[393492732,1762717845386,-228.31899515,0.00036137,15]
[393492734,1762717845396,-6000.15936023,0.00036137,2]
[393492736,1762717845406,-185.84294707,0.00036147,2]
[393492738,1762717845416,-1200.0,0.00036239,5]
[393492740,1762717845425,-920.0,0.00036288,120]
[393492742,1762717845435,-920.0,0.00036499,7]
[393492744,1762717845444,-150.6,0.00036527,60]
[393492746,1762717845454,-200.0,0.00036547,2]
[393492748,1762717845464,-150.6,0.00036627,60]
[393492750,1762717845474,-150.6,0.00036727,60]
[393492752,1762717845483,-1000.0,0.00036824,7]
[393492755,1762717845496,-150.6,0.00036827,60]
[393492756,1762717845506,-152.0,0.00036891,3]
[393492759,1762717845516,-600.0,0.00036924,5]
[393492761,1762717845526,-150.6,0.00036927,60]
[393492762,1762717845537,-150.722934,0.00036995,30]
[393492765,1762717845547,-154.680057,0.00036995,30]
[393492767,1762717845556,-182.35821551,0.00037,2]
[393492769,1762717845566,-150.6,0.00037027,60]
[393492771,1762717845575,-150.6,0.00037127,60]
[393492773,1762717845585,-920.0,0.00037201,120]
[393492775,1762717845595,-159.71131611,0.00037211,2]
[393492777,1762717845605,-150.6,0.00037227,60]
[393492779,1762717845614,-920.0,0.00037228,7]
[393492781,1762717845623,-1485.0,0.00037281,7]
[393492783,1762717845632,-150.6,0.00037327,60]
[393492785,1762717845642,-150.6,0.00037427,60]
[393492787,1762717845651,-150.6,0.00037527,60]
[393492789,1762717845660,-920.0,0.00037595,2]
[393492791,1762717845670,-220.33858669,0.00037618,7]
[393492793,1762717845679,-150.6,0.00037627,60]
[393492795,1762717845689,-1000.0,0.00037631,2]
[393492797,1762717845699,-920.0,0.00037633,2]
[393492799,1762717845708,-228.31899515,0.0003764,15]
[393492801,1762717845718,-6000.15936023,0.0003764,2]
[393492803,1762717845728,-1596.0,0.00037684,2]
[393492805,1762717845739,-820.0,0.00037684,2]
[393492807,1762717845749,-382.497,0.00037684,2]
[393492809,1762717845759,-150.6,0.00037727,60]
[393492811,1762717845769,-920.0,0.00037829,2]
[393492813,1762717845778,-1000.0,0.00037831,120]
[393492815,1762717845788,-920.0,0.00037883,2]
[393492818,1762717845798,-841.47,0.00037935,2]
[393492820,1762717845807,-802.0,0.00037936,20]
[393492822,1762717845816,-500.0,0.00037947,30]
[393492825,1762717845826,-500.0,0.00037947,30]
[393492828,1762717845835,-500.0,0.00037947,30]
[393492832,1762717845845,-290.08,0.0003795,2]
[393492835,1762717845855,-269.33,0.0003795,2]
[393492839,1762717845864,-150.0,0.0003795,2]
[393492841,1762717845875,-1206.23,0.0003795,2]
[393492844,1762717845883,-150.0,0.0003795,2]
[393492846,1762717845892,-150.0,0.0003795,2]
[393492847,1762717845903,-1206.23,0.0003795,2]
[393492850,1762717845912,-300.0,0.0003795,2]
[393492851,1762717845923,-150.0,0.0003795,2]
[393492853,1762717845932,-1206.23,0.0003795,2]
[393492854,1762717845942,-150.0,0.0003795,2]
[393492855,1762717845952,-150.0,0.0003795,2]
[393492856,1762717845961,-150.0,0.0003795,2]
[393492857,1762717845970,-2000.0,0.00038,2]
[393492858,1762717845979,-2000.0,0.00038,2]
[393492859,1762717845989,-2000.0,0.00038,2]
[393492860,1762717845998,-2000.0,0.00038,2]
[393492861,1762717846009,-2000.0,0.00038,2]
[393492862,1762717846018,-2000.0,0.00038,2]
[393492863,1762717846028,-2000.0,0.00038,2]
[393492864,1762717846037,-2000.0,0.00038,2]
[393492865,1762717846046,-181.0,0.00038,30]
[393492866,1762717846056,-1000.0,0.00038046,2]
[393492867,1762717846066,-920.0,0.00038093,2]
[393492868,1762717846075,-241.53105447,0.000381,33]
[393492869,1762717846085,-1000.0,0.000381,2]
[393492870,1762717846095,-500.0,0.00038221,30]
[393492871,1762717846104,-768.6,0.00038221,30]
[393492872,1762717846114,-150.0,0.00038243,2]
[393492873,1762717846124,-175.66985148,0.00038243,2]
[393492874,1762717846133,-802.0,0.00038327,20]
[393492875,1762717846143,-500.0,0.00038356,2]
[393492876,1762717846153,-1009.90470316,0.00038356,120]
[393492877,1762717846163,-1485.0,0.00038379,2]
[393492878,1762717846172,-1000.0,0.00038415,2]
[393492879,1762717846182,-954.82,0.00038435,2]
[393492880,1762717846192,-477.41,0.00038449,2]
[393492881,1762717846204,-698.95,0.00038449,2]
[393492882,1762717846213,-698.95,0.00038449,2]
[393492883,1762717846223,-954.82,0.00038449,2]
[393492884,1762717846232,-477.41,0.00038449,2]
[393492885,1762717846243,-500.0,0.00038495,30]
[393492887,1762717846253,-1250.0,0.0003852,2]
[393492889,1762717846263,-21405.05817738,0.00038584,2]
[393492891,1762717846272,-151.57006123,0.000386,120]
[393492893,1762717846283,-151.57006123,0.000386,120]
[393492895,1762717846293,-920.0,0.0003861,2]
[393492897,1762717846303,-729.63216781,0.00038612,2]
[393492899,1762717846313,-802.0,0.00038718,20]
[393492900,1762717846322,-920.0,0.00038722,2]
[393492901,1762717846332,-500.0,0.00038769,30]
[393492902,1762717846342,-1250.0,0.0003879,2]
[393492903,1762717846352,-920.0,0.00038801,2]
[393492904,1762717846361,-920.0,0.00038884,7]
[393492905,1762717846370,-245.9486,0.00038888,30]
[393492906,1762717846380,-920.0,0.00038905,2]
[393492907,1762717846390,-2000.0,0.00038999,2]
[393492908,1762717846400,-1485.0,0.00038999,120]
[393492909,1762717846410,-569066.88062253,0.00039,120]
[393492910,1762717846420,-478.20968403,0.00039,120]
[393492911,1762717846429,-151.0,0.00039,120]
[393492912,1762717846439,-151.0,0.00039,120]
[393492913,1762717846448,-151.0,0.00039,120]
[393492914,1762717846457,-265.108545,0.00039,120]
[393492915,1762717846468,-1000.0,0.00039043,2]
[393492916,1762717846477,-500.0,0.00039043,30]
[393492917,1762717846487,-2000.0,0.00039066,3]
[393492918,1762717846497,-2000.0,0.00039066,3]
[393492919,1762717846506,-920.0,0.00039076,2]
[393492920,1762717846515,-1000.0,0.00039095,120]
[393492921,1762717846525,-1000.0,0.00039095,120]
[393492922,1762717846534,-213.74018373,0.00039095,120]
[393492923,1762717846544,-802.0,0.00039109,20]
[393492924,1762717846553,-185.84294707,0.00039129,2]
[393492925,1762717846563,-159.71131611,0.00039143,2]
[393492926,1762717846572,-228.31899515,0.00039143,15]
[393492927,1762717846582,-151.57006123,0.00039143,120]
[393492929,1762717846591,-150.81255791,0.00039143,8]
[393492931,1762717846600,-1553.6898022,0.00039143,2]
[393492932,1762717846610,-207.14834687,0.00039143,2]
[393492935,1762717846620,-6000.15936023,0.00039143,2]
[393492937,1762717846630,-449.17052271,0.00039143,2]
[393492939,1762717846640,-165.3757453,0.00039143,120]
[393492941,1762717846649,-165.3757453,0.00039143,120]
[393492943,1762717846659,-165.3757453,0.00039143,120]
[393492945,1762717846669,-165.37,0.00039143,120]
[393492947,1762717846678,-154.35069562,0.00039143,120]
[393492949,1762717846687,-154.35069562,0.00039143,120]
[393492951,1762717846697,-154.35069562,0.00039143,120]
[393492953,1762717846707,-154.35069562,0.00039143,120]
[393492955,1762717846716,-154.35069562,0.00039143,120]
[393492957,1762717846725,-154.35069562,0.00039143,120]
[393492959,1762717846734,-154.35069562,0.00039143,120]
[393492961,1762717846743,-154.35069562,0.00039143,120]
[393492962,1762717846752,-154.35069562,0.00039143,120]
[393492964,1762717846763,-154.35,0.00039143,120]
[393492966,1762717846772,-1008.4699765,0.000392,120]
[393492968,1762717846782,-182.0091767,0.000392,120]
[393492971,1762717846792,-185.62238957,0.000392,120]
[393492973,1762717846801,-173.47806271,0.000392,120]
[393492974,1762717846811,-250.0,0.000392,14]
[393492975,1762717846819,-1000.0,0.000392,7]
[393492976,1762717846828,-500.0,0.00039228,120]
[393492977,1762717846837,-300.0,0.00039228,10]
[393492978,1762717846846,-1234.23184451,0.00039233,2]
[393492979,1762717846854,-1234.23184451,0.00039233,2]
[393492980,1762717846863,-2000.0,0.00039237,2]
[393492981,1762717846872,-151.0,0.00039238,2]
[393492982,1762717846881,-151.0,0.00039238,2]
[393492984,1762717846890,-151.0,0.00039242,120]
[393492986,1762717846899,-151.0,0.00039242,120]
[393492988,1762717846909,-151.0,0.00039242,120]
[393492990,1762717846918,-151.0,0.00039242,120]
[393492992,1762717846928,-151.0,0.00039242,120]
[393492994,1762717846937,-151.0,0.00039242,120]
[393492996,1762717846947,-151.0,0.00039242,120]
[393492998,1762717846956,-300.0,0.00039242,10]
[393493000,1762717846965,-300.0,0.00039242,10]
[393493002,1762717846975,-300.0,0.00039242,10]
[393493004,1762717846984,-666.0,0.00039242,10]
[393493006,1762717846994,-150.05,0.00039243,60]
[393493008,1762717847004,-151.0,0.00039243,120]
[393493010,1762717847013,-174.051404,0.00039243,120]
[393493012,1762717847023,-174.051404,0.00039243,120]
[393493014,1762717847032,-151.0,0.00039243,15]
[393493016,1762717847041,-174.051404,0.00039243,120]
[393493018,1762717847051,-174.051395,0.00039243,120]
[393493020,1762717847061,-151.0,0.00039243,15]
[393493022,1762717847070,-151.0,0.00039243,120]
[393493023,1762717847082,-323.440184,0.00039243,120]
[393493024,1762717847091,-323.440184,0.00039243,120]
[393493027,1762717847101,-323.440184,0.00039243,120]
[393493029,1762717847110,-323.440187,0.00039243,120]
[393493031,1762717847120,-151.0,0.00039243,120]
[393493033,1762717847129,-2098259.3423072,0.00039243,7]
[393493039,1762717847173,-255.86551981,0.00039243,7]
[393493041,1762717847184,-523.85,0.00039243,7]
[393493044,1762717847210,-174.69452176,0.00025616,2]
[393493046,1762717847220,-250.0,0.00028684,2]
[393493048,1762717847230,-150.0,0.00031684,2]
[393493050,1762717847239,-17841.61494014,0.00039243,7]
[393493053,1762717847251,-2655.86824954,0.00039243,7]
[393493055,1762717847262,-895.58066229,0.00039243,7]
[393493057,1762717847275,-14787.49047847,0.00039243,7]
[393493059,1762717847286,-678.189999,0.00039243,7]
[393493061,1762717847297,-751.38175964,0.00039243,7]
[393493064,1762717847310,-4111.86167893,0.00039243,7]
[393493067,1762717964315,500.0,0.00039243,120]
[393493068,1762717964556,500.0,0.00039243,120]
[393493069,1762718061811,500.0,0.00039243,120]
[393493070,1762718062053,500.0,0.00039243,120]
[393493072,1762718344159,1000.0,0.00039243,120]
[393493088,1762718819135,-234.54664866,0.00025574,2]
[393493128,1762719032288,-1012.0,0.00025573,2]
[393493129,1762719032297,-300.0,0.00025573,2]
[393493130,1762719032307,-289.58290649,0.00025574,2]
[393493131,1762719032320,-260.41709351,0.00025574,2]
[393493132,1762719032330,-300.0,0.00025574,2]
[393493133,1762719032339,-468.65644793,0.00025575,2]
[393493134,1762719032351,-31.34355207,0.00025575,2]
[393493135,1762719032360,-500.0,0.00025575,2]
[393493136,1762719032370,-500.0,0.00025575,2]
[393493137,1762719032380,-500.0,0.00025575,2]
[393493138,1762719032389,-500.0,0.00025575,2]
[393493139,1762719032398,-500.0,0.00025575,2]
[393493140,1762719032407,-500.0,0.00025575,2]
[393493141,1762719032417,-199.35435632,0.00025575,2]
[393493142,1762719032426,-500.0,0.00025575,2]
[393493143,1762719032435,-500.0,0.00025575,2]
[393493144,1762719032444,-500.0,0.00025575,2]
[393493145,1762719032453,-500.0,0.00025575,2]
[393493146,1762719032462,-500.0,0.00025575,2]
[393493147,1762719032472,-500.0,0.00025575,2]
[393493148,1762719032481,-500.0,0.00025575,2]
[393493149,1762719032490,-443.97289161,0.00025575,2]
[393493150,1762719032502,-56.02710839,0.00025575,2]
[393493151,1762719032511,-615.05066721,0.00025575,2]
[393493152,1762719032520,-500.0,0.00025575,2]
[393493153,1762719032530,-500.0,0.00025575,2]
[393493154,1762719032540,-500.0,0.00025575,2]
[393493155,1762719032549,-500.0,0.00025575,2]
[393493156,1762719032559,-500.0,0.00025575,2]
[393493157,1762719032571,-500.0,0.00025575,2]
[393493158,1762719032581,-500.0,0.00025575,2]
[393493159,1762719032590,-500.0,0.00025575,2]
[393493160,1762719032603,-500.0,0.00025575,2]
[393493161,1762719032613,-500.0,0.00025575,2]
[393493162,1762719032624,-500.0,0.00025575,2]
[393493163,1762719032634,-500.0,0.00025575,2]
[393493164,1762719032644,-500.0,0.00025575,2]
[393493165,1762719032653,-500.0,0.00025575,2]
[393493166,1762719032663,-500.0,0.00025575,2]
[393493167,1762719032675,-500.0,0.00025575,2]
[393493168,1762719032684,-211.69272359,0.00025575,2]
[393493169,1762719032696,-288.30727641,0.00025575,2]
[393493170,1762719032705,-500.0,0.00025575,2]
[393493171,1762719032715,-214.14791412,0.00025575,2]
[393493172,1762719032726,-285.85208588,0.00025575,2]
[393493173,1762719032735,-500.0,0.00025575,2]
[393493174,1762719032744,-500.0,0.00025575,2]
[393493175,1762719032753,-650.0,0.00025575,2]
[393493176,1762719032762,-36538.4916933,0.00025576,2]